[Event "*** Titled Tuesday Blitz"]
[Site "Chess.com"]
[Date "2019.12.03"]
[Round "4"]
[White "Filip_Covic"]
[Black "FrogMist"]
[Result "1-0"]
[WhiteElo "2456"]
[BlackElo "2290"]
[TimeControl "180+2"]
[EndTime "13:54:40 PST"]
[Termination "Filip_Covic won by resignation"]

1. e4 {[%clk 0:02:58.4]} 1... c6 {[%clk 0:02:58.2]} 2. d4 {[%clk 0:02:57.9]}
2... d5 {[%clk 0:02:59.8]} 3. f3 {[%clk 0:02:55.7]} 3... e6 {[%clk 0:02:53.9]}
4. Nc3 {[%clk 0:02:54.7]} 4... Qb6 {[%clk 0:02:54.6]} 5. Nge2 {[%clk 0:02:47.9]}
5... Nd7 {[%clk 0:02:33.7]} 6. a3 {[%clk 0:02:32.7]} 6... dxe4 {[%clk
0:02:26.5]} 7. Nxe4 {[%clk 0:02:29.2]} 7... Ngf6 {[%clk 0:02:25.2]} 8. N2g3
{[%clk 0:02:20.8]} 8... Be7 {[%clk 0:02:20.8]} 9. Bd3 {[%clk 0:02:16.6]} 9... c5
{[%clk 0:02:16.9]} 10. dxc5 {[%clk 0:02:12.6]} 10... Nxc5 {[%clk 0:02:17.7]} 11.
Nxc5 {[%clk 0:01:59.7]} 11... Bxc5 {[%clk 0:02:19.6]} 12. Qe2 {[%clk 0:01:57.2]}
12... O-O {[%clk 0:02:15.2]} 13. c3 {[%clk 0:01:33.3]} 13... a5 {[%clk
0:02:08.3]} 14. Rb1 {[%clk 0:01:29.3]} 14... a4 {[%clk 0:02:08.2]} 15. Bg5
{[%clk 0:01:26.6]} 15... Nd5 {[%clk 0:02:03.2]} 16. Ne4 {[%clk 0:01:20.6]} 16...
Be3 {[%clk 0:01:42.2]} 17. Bxe3 {[%clk 0:01:13.6]} 17... Qxe3 {[%clk 0:01:37.9]}
18. Qxe3 {[%clk 0:01:12.3]} 18... Nxe3 {[%clk 0:01:39.8]} 19. Kf2 {[%clk
0:01:11.3]} 19... Nd5 {[%clk 0:01:37.8]} 20. Bb5 {[%clk 0:01:05.5]} 20... e5
{[%clk 0:01:12.5]} 21. Rbd1 {[%clk 0:01:01.5]} 21... Be6 {[%clk 0:01:10.2]} 22.
Nc5 {[%clk 0:00:53.3]} 22... Nc7 {[%clk 0:01:06.9]} 23. Bxa4 {[%clk 0:00:47]}
23... b6 {[%clk 0:00:52]} 24. Nxe6 {[%clk 0:00:45.5]} 24... Nxe6 {[%clk
0:00:53.9]} 25. Bc2 {[%clk 0:00:37.9]} 25... g6 {[%clk 0:00:50.3]} 26. Rd6
{[%clk 0:00:38]} 26... b5 {[%clk 0:00:50.5]} 27. Rhd1 {[%clk 0:00:37.4]} 27...
Rab8 {[%clk 0:00:50.7]} 28. R6d5 {[%clk 0:00:29.9]} 28... f6 {[%clk 0:00:47.4]}
29. Bb3 {[%clk 0:00:27.7]} 29... Kh8 {[%clk 0:00:39.4]} 30. Ba2 {[%clk 0:00:21]}
30... Rfd8 {[%clk 0:00:23.4]} 31. Rxd8+ {[%clk 0:00:21.1]} 31... Rxd8 {[%clk
0:00:25.3]} 32. Rxd8+ {[%clk 0:00:21.3]} 32... Nxd8 {[%clk 0:00:27.2]} 33. Bb1
{[%clk 0:00:21.3]} 33... Nb7 {[%clk 0:00:26.6]} 34. Bd3 {[%clk 0:00:22.6]} 34...
Nd6 {[%clk 0:00:28.2]} 35. Ke3 {[%clk 0:00:23.3]} 35... f5 {[%clk 0:00:28.5]}
36. Kd2 {[%clk 0:00:23.4]} 36... Kg7 {[%clk 0:00:30]} 37. Kc2 {[%clk 0:00:24.8]}
37... Kf6 {[%clk 0:00:30.1]} 38. b3 {[%clk 0:00:23.6]} 38... e4 {[%clk
0:00:30.3]} 39. fxe4 {[%clk 0:00:23.7]} 39... fxe4 {[%clk 0:00:32.2]} 40. Be2
{[%clk 0:00:24.6]} 40... Ke5 {[%clk 0:00:33.8]} 41. g3 {[%clk 0:00:25.7]} 41...
h5 {[%clk 0:00:32.4]} 42. a4 {[%clk 0:00:26.1]} 42... bxa4 {[%clk 0:00:31.8]}
43. bxa4 {[%clk 0:00:28]} 43... h4 {[%clk 0:00:31.2]} 44. a5 {[%clk 0:00:27.5]}
44... hxg3 {[%clk 0:00:30.9]} 45. hxg3 {[%clk 0:00:27.7]} 45... Kd5 {[%clk
0:00:31.9]} 46. a6 {[%clk 0:00:27.2]} 46... Nc8 {[%clk 0:00:33.3]} 47. Kd2
{[%clk 0:00:28.1]} 47... g5 {[%clk 0:00:30.8]} 48. Ke3 {[%clk 0:00:29.3]} 48...
Ke5 {[%clk 0:00:30.2]} 49. c4 {[%clk 0:00:28.5]} 49... Na7 {[%clk 0:00:31.7]}
50. c5 {[%clk 0:00:28.8]} 50... Kd5 {[%clk 0:00:32.5]} 51. Bf1 {[%clk
0:00:23.4]} 51... Kxc5 {[%clk 0:00:27.6]} 52. Kxe4 {[%clk 0:00:23.9]} 52... Kb6
{[%clk 0:00:26.5]} 53. Kf5 {[%clk 0:00:24.8]} 53... Nc6 {[%clk 0:00:27.7]} 54.
Kxg5 {[%clk 0:00:25.5]} 54... Ne7 {[%clk 0:00:27.1]} 55. Kf6 {[%clk 0:00:24.8]}
55... Nd5+ {[%clk 0:00:27.4]} 56. Ke5 {[%clk 0:00:24.4]} 56... Ne3 {[%clk
0:00:28.4]} 57. Be2 {[%clk 0:00:25.5]} 57... Ka7 {[%clk 0:00:25.5]} 58. Ke4
{[%clk 0:00:25.7]} 58... Ng2 {[%clk 0:00:22]} 59. g4 {[%clk 0:00:27]} 59... Nh4
{[%clk 0:00:23.1]} 60. g5 {[%clk 0:00:26.7]} 60... Ng6 {[%clk 0:00:23.9]} 61.
Kf5 {[%clk 0:00:26.8]} 61... Nf8 {[%clk 0:00:25.4]} 62. g6 {[%clk 0:00:24.6]}
62... Ne6 {[%clk 0:00:17]} 63. Kxe6 {[%clk 0:00:25]} 1-0

[Event "*** Titled Tuesday Blitz"]
[Site "Chess.com"]
[Date "2019.12.03"]
[Round "4"]
[White "DangerousPlayer1st"]
[Black "VincentKeymer"]
[Result "1-0"]
[WhiteElo "2790"]
[BlackElo "2634"]
[TimeControl "180+2"]
[EndTime "13:54:45 PST"]
[Termination "DangerousPlayer1st won by resignation"]

1. e4 {[%clk 0:03:01.9]} 1... c5 {[%clk 0:02:56.1]} 2. Nf3 {[%clk 0:03:02.8]}
2... e6 {[%clk 0:02:57.2]} 3. d4 {[%clk 0:03:03.7]} 3... cxd4 {[%clk 0:02:58.6]}
4. Nxd4 {[%clk 0:03:04.6]} 4... a6 {[%clk 0:03:00.5]} 5. Bd3 {[%clk 0:03:05.1]}
5... Qc7 {[%clk 0:03:00.2]} 6. O-O {[%clk 0:03:06.3]} 6... Nf6 {[%clk
0:03:01.3]} 7. c4 {[%clk 0:03:06.9]} 7... d6 {[%clk 0:03:02.5]} 8. Nc3 {[%clk
0:03:06.3]} 8... g6 {[%clk 0:03:03.6]} 9. b3 {[%clk 0:03:01.2]} 9... Bg7 {[%clk
0:03:03.6]} 10. Bb2 {[%clk 0:03:02.8]} 10... O-O {[%clk 0:03:04.5]} 11. Qd2
{[%clk 0:02:58.4]} 11... Nc6 {[%clk 0:03:03.2]} 12. Nxc6 {[%clk 0:02:53.2]}
12... bxc6 {[%clk 0:03:05.1]} 13. Rac1 {[%clk 0:02:53.7]} 13... c5 {[%clk
0:03:02]} 14. Rfd1 {[%clk 0:02:54.2]} 14... Bb7 {[%clk 0:03:02.8]} 15. Qe3
{[%clk 0:02:52.3]} 15... Nd7 {[%clk 0:02:50.5]} 16. Na4 {[%clk 0:02:45.5]} 16...
Ne5 {[%clk 0:02:47.8]} 17. Be2 {[%clk 0:02:43.3]} 17... Rad8 {[%clk 0:02:40]}
18. Rd2 {[%clk 0:02:30.3]} 18... Nc6 {[%clk 0:02:33.3]} 19. Bxg7 {[%clk
0:02:23.4]} 19... Kxg7 {[%clk 0:02:35.1]} 20. Nc3 {[%clk 0:01:58.7]} 20... Nd4
{[%clk 0:02:14.5]} 21. Bd3 {[%clk 0:01:52.7]} 21... e5 {[%clk 0:02:13.7]} 22.
Ne2 {[%clk 0:01:50.2]} 22... Kh8 {[%clk 0:01:56.8]} 23. Rf1 {[%clk 0:01:49.8]}
23... Qc6 {[%clk 0:01:48.3]} 24. Nxd4 {[%clk 0:01:47.1]} 24... cxd4 {[%clk
0:01:48.6]} 25. Qh3 {[%clk 0:01:38]} 25... f5 {[%clk 0:01:40.3]} 26. f3 {[%clk
0:01:38.4]} 26... f4 {[%clk 0:01:38]} 27. a3 {[%clk 0:01:31.7]} 27... Qc7 {[%clk
0:01:32.3]} 28. Qh4 {[%clk 0:01:30.6]} 28... Bc8 {[%clk 0:01:10.4]} 29. b4
{[%clk 0:01:29.3]} 29... Be6 {[%clk 0:01:06.3]} 30. Rc1 {[%clk 0:01:30.1]} 30...
a5 {[%clk 0:01:04.5]} 31. c5 {[%clk 0:01:28.7]} 31... axb4 {[%clk 0:01:03.1]}
32. axb4 {[%clk 0:01:30.6]} 32... Rb8 {[%clk 0:01:00.5]} 33. b5 {[%clk
0:01:19.1]} 33... dxc5 {[%clk 0:00:59.7]} 34. Rdc2 {[%clk 0:01:20.5]} 34... c4
{[%clk 0:00:31.1]} 35. Bxc4 {[%clk 0:01:21.3]} 35... Bxc4 {[%clk 0:00:32.2]} 36.
Rxc4 {[%clk 0:01:23.2]} 36... Qd8 {[%clk 0:00:33.7]} 37. Qxd8 {[%clk 0:01:15.9]}
37... Rfxd8 {[%clk 0:00:33.5]} 38. Rc5 {[%clk 0:01:15.6]} 38... Re8 {[%clk
0:00:20.6]} 39. Kf2 {[%clk 0:01:16.8]} 39... Kg7 {[%clk 0:00:21.2]} 40. R1c2
{[%clk 0:01:17.6]} 40... Re7 {[%clk 0:00:21.9]} 41. Rb2 {[%clk 0:01:18.2]} 41...
Rb6 {[%clk 0:00:23.1]} 42. Ke2 {[%clk 0:01:17.1]} 42... Kf6 {[%clk 0:00:24]} 43.
Kd3 {[%clk 0:01:18.6]} 43... Reb7 {[%clk 0:00:24.9]} 44. Kc4 {[%clk 0:01:17.8]}
44... Rb8 {[%clk 0:00:25.5]} 45. Ra2 {[%clk 0:01:18.8]} 45... h5 {[%clk
0:00:26.7]} 46. h4 {[%clk 0:01:17]} 46... Ke6 {[%clk 0:00:27.5]} 47. Ra7 {[%clk
0:01:16.1]} 47... Rd6 {[%clk 0:00:24.2]} 48. Rcc7 {[%clk 0:01:06.3]} 48... Re8
{[%clk 0:00:15.6]} 49. Ra6 {[%clk 0:01:07.6]} 49... Rd8 {[%clk 0:00:13.1]} 50.
Raa7 {[%clk 0:01:03.4]} 50... Re8 {[%clk 0:00:13.5]} 51. Kd3 {[%clk 0:01:03]}
51... Kf6 {[%clk 0:00:13.4]} 52. Rf7+ {[%clk 0:01:01.4]} 52... Ke6 {[%clk
0:00:15.3]} 53. Rg7 {[%clk 0:01:03.3]} 53... Kf6 {[%clk 0:00:16.5]} 54. Raf7+
{[%clk 0:01:03]} 54... Ke6 {[%clk 0:00:17.8]} 55. Rxg6+ {[%clk 0:01:04.2]} 55...
Kxf7 {[%clk 0:00:19.7]} 56. Rxd6 {[%clk 0:01:06.1]} 56... Rc8 {[%clk 0:00:21.1]}
57. b6 {[%clk 0:00:54.4]} 57... Rc3+ {[%clk 0:00:22]} 58. Kd2 {[%clk 0:00:55.2]}
58... Rb3 {[%clk 0:00:23.7]} 59. Rh6 {[%clk 0:00:52.4]} 59... Rb2+ {[%clk
0:00:24.4]} 60. Kc1 {[%clk 0:00:49]} 60... Rxg2 {[%clk 0:00:25.2]} 61. b7 {[%clk
0:00:47.4]} 61... Rg8 {[%clk 0:00:26]} 62. Rxh5 {[%clk 0:00:39.6]} 62... Ke6
{[%clk 0:00:27.3]} 63. Kd2 {[%clk 0:00:38.3]} 63... Kd6 {[%clk 0:00:28.2]} 64.
Rh7 {[%clk 0:00:37.8]} 64... Kc6 {[%clk 0:00:28.2]} 65. h5 {[%clk 0:00:38.6]}
65... Rg2+ {[%clk 0:00:28.1]} 66. Kd3 {[%clk 0:00:38.9]} 66... Rg8 {[%clk
0:00:30]} 67. h6 {[%clk 0:00:39.3]} 67... Kb6 {[%clk 0:00:31.2]} 68. Rg7 {[%clk
0:00:39.3]} 68... Rh8 {[%clk 0:00:29]} 69. h7 {[%clk 0:00:40.6]} 69... Ka7
{[%clk 0:00:30.7]} 70. b8=Q+ {[%clk 0:00:41.1]} 70... Kxb8 {[%clk 0:00:32]} 71.
Rg8+ {[%clk 0:00:42.2]} 1-0

[Event "*** Titled Tuesday Blitz"]
[Site "Chess.com"]
[Date "2019.12.03"]
[Round "4"]
[White "nurgyulsalimova"]
[Black "Dr-Bassem"]
[Result "1/2-1/2"]
[WhiteElo "2541"]
[BlackElo "2747"]
[TimeControl "180+2"]
[EndTime "13:54:48 PST"]
[Termination "Game drawn by agreement"]

1. e4 {[%clk 0:03:01.7]} 1... e5 {[%clk 0:03:00.2]} 2. Nf3 {[%clk 0:03:02.7]}
2... Nc6 {[%clk 0:03:01.7]} 3. Bc4 {[%clk 0:03:02.9]} 3... Nf6 {[%clk
0:03:01.7]} 4. d3 {[%clk 0:03:03.1]} 4... h6 {[%clk 0:02:57.7]} 5. O-O {[%clk
0:03:03.2]} 5... d6 {[%clk 0:02:56]} 6. c3 {[%clk 0:03:02.7]} 6... g6 {[%clk
0:02:57.1]} 7. a4 {[%clk 0:02:59.4]} 7... Bg7 {[%clk 0:02:54.2]} 8. a5 {[%clk
0:02:58.1]} 8... a6 {[%clk 0:02:51.7]} 9. Nbd2 {[%clk 0:02:57.8]} 9... O-O
{[%clk 0:02:52]} 10. Re1 {[%clk 0:02:57.6]} 10... Nh7 {[%clk 0:02:38.3]} 11. Nf1
{[%clk 0:02:54.7]} 11... Kh8 {[%clk 0:02:37.6]} 12. d4 {[%clk 0:02:50]} 12...
exd4 {[%clk 0:02:16.5]} 13. Nxd4 {[%clk 0:02:49.1]} 13... Ne5 {[%clk 0:02:10.9]}
14. Be2 {[%clk 0:02:46]} 14... Qh4 {[%clk 0:02:07.4]} 15. f4 {[%clk 0:02:39.7]}
15... Ng4 {[%clk 0:02:03.7]} 16. g3 {[%clk 0:02:39.3]} 16... Qh3 {[%clk
0:01:58]} 17. Bf3 {[%clk 0:02:37.3]} 17... Qh5 {[%clk 0:01:21.3]} 18. Bg2 {[%clk
0:02:30.9]} 18... Qc5 {[%clk 0:01:11.2]} 19. h3 {[%clk 0:02:24.8]} 19... Ne5
{[%clk 0:01:12]} 20. Kh2 {[%clk 0:02:06.7]} 20... Nc4 {[%clk 0:01:00.4]} 21. b4
{[%clk 0:01:23.4]} 21... Qh5 {[%clk 0:00:30.5]} 22. Qb3 {[%clk 0:01:07.1]} 22...
c5 {[%clk 0:00:23.5]} 23. bxc5 {[%clk 0:00:46.8]} 23... dxc5 {[%clk 0:00:20.1]}
24. Qxc4 {[%clk 0:00:47.7]} 24... cxd4 {[%clk 0:00:21]} 25. cxd4 {[%clk
0:00:37.4]} 25... Be6 {[%clk 0:00:22.3]} 26. Qd3 {[%clk 0:00:38.3]} 26... Rfd8
{[%clk 0:00:22.1]} 27. Be3 {[%clk 0:00:35.1]} 27... Nf6 {[%clk 0:00:19.9]} 28.
Rad1 {[%clk 0:00:19.3]} 28... Ng4+ {[%clk 0:00:20.1]} 29. Kg1 {[%clk 0:00:20.3]}
29... Nxe3 {[%clk 0:00:20.7]} 30. Qxe3 {[%clk 0:00:19.2]} 30... Bxh3 {[%clk
0:00:22.1]} 31. Bxh3 {[%clk 0:00:19.9]} 31... Qxh3 {[%clk 0:00:23.7]} 32. d5
{[%clk 0:00:19.7]} 32... Rac8 {[%clk 0:00:23.6]} 33. e5 {[%clk 0:00:19.7]} 33...
Rc2 {[%clk 0:00:23.2]} 34. Rd2 {[%clk 0:00:18]} 34... Rxd2 {[%clk 0:00:21.9]}
35. Qxd2 {[%clk 0:00:18.7]} 35... h5 {[%clk 0:00:21.7]} 36. d6 {[%clk
0:00:17.2]} 36... Qe6 {[%clk 0:00:19.7]} 37. Ne3 {[%clk 0:00:12.6]} 37... f6
{[%clk 0:00:20.2]} 38. Qd5 {[%clk 0:00:12.8]} 38... Qh3 {[%clk 0:00:19.4]} 39.
Qg2 {[%clk 0:00:12.8]} 39... Qd7 {[%clk 0:00:17.5]} 40. exf6 {[%clk 0:00:12]}
40... Bxf6 {[%clk 0:00:18.1]} 41. Nc4 {[%clk 0:00:11.6]} 41... Qb5 {[%clk
0:00:17.4]} 42. Ne5 {[%clk 0:00:12.4]} 42... Qc5+ {[%clk 0:00:16.1]} 43. Kh2
{[%clk 0:00:11.4]} 43... Kg8 {[%clk 0:00:02.5]} 44. Qa2+ {[%clk 0:00:11]} 44...
Kh7 {[%clk 0:00:03.6]} 45. Qf7+ {[%clk 0:00:11.7]} 45... Bg7 {[%clk 0:00:03.1]}
46. Qxg6+ {[%clk 0:00:11.9]} 46... Kg8 {[%clk 0:00:04.7]} 47. Qf7+ {[%clk
0:00:10.8]} 47... Kh7 {[%clk 0:00:06.1]} 48. Qxh5+ {[%clk 0:00:11.7]} 48... Kg8
{[%clk 0:00:07.8]} 49. Qf7+ {[%clk 0:00:12.6]} 49... Kh7 {[%clk 0:00:09.2]} 50.
Qf5+ {[%clk 0:00:12.8]} 50... Kg8 {[%clk 0:00:09.7]} 51. Qe6+ {[%clk 0:00:13.8]}
51... Kh7 {[%clk 0:00:11.3]} 52. Qg6+ {[%clk 0:00:05.9]} 52... Kg8 {[%clk
0:00:11.7]} 53. Qf7+ {[%clk 0:00:06.5]} 53... Kh7 {[%clk 0:00:12.4]} 54. Qh5+
{[%clk 0:00:07.5]} 1/2-1/2

[Event "*** Titled Tuesday Blitz"]
[Site "Chess.com"]
[Date "2019.12.03"]
[Round "4"]
[White "albano87"]
[Black "coalescenet"]
[Result "1/2-1/2"]
[WhiteElo "2088"]
[BlackElo "2348"]
[TimeControl "180+2"]
[EndTime "13:54:56 PST"]
[Termination "Game drawn - insufficient material"]

1. e4 {[%clk 0:03:00.5]} 1... c6 {[%clk 0:03:00.5]} 2. d4 {[%clk 0:03:01.1]}
2... d5 {[%clk 0:03:02.4]} 3. Nc3 {[%clk 0:03:02.2]} 3... a6 {[%clk 0:03:01.9]}
4. Nf3 {[%clk 0:03:02.2]} 4... Bg4 {[%clk 0:03:02.2]} 5. Be2 {[%clk 0:03:00.3]}
5... e6 {[%clk 0:03:01.2]} 6. O-O {[%clk 0:03:00.4]} 6... Nf6 {[%clk 0:03:01.6]}
7. Bg5 {[%clk 0:02:54.2]} 7... Be7 {[%clk 0:03:01.5]} 8. e5 {[%clk 0:02:50.7]}
8... Nfd7 {[%clk 0:03:01.9]} 9. Bxe7 {[%clk 0:02:50.9]} 9... Qxe7 {[%clk
0:03:03.8]} 10. h3 {[%clk 0:02:50.3]} 10... Bh5 {[%clk 0:03:03.2]} 11. a4 {[%clk
0:02:50.7]} 11... O-O {[%clk 0:03:00]} 12. a5 {[%clk 0:02:48.7]} 12... c5 {[%clk
0:03:00]} 13. dxc5 {[%clk 0:02:46.7]} 13... Nc6 {[%clk 0:02:57.7]} 14. Na4
{[%clk 0:02:45.4]} 14... Nxa5 {[%clk 0:02:41.9]} 15. b4 {[%clk 0:02:33]} 15...
Nc6 {[%clk 0:02:41.7]} 16. c3 {[%clk 0:02:34]} 16... Bxf3 {[%clk 0:02:30.9]} 17.
Bxf3 {[%clk 0:02:33.2]} 17... Ncxe5 {[%clk 0:02:31.5]} 18. Re1 {[%clk 0:02:33]}
18... Rfc8 {[%clk 0:02:23.6]} 19. Bxd5 {[%clk 0:02:00.3]} 19... exd5 {[%clk
0:02:21.5]} 20. f4 {[%clk 0:02:00.7]} 20... Qf6 {[%clk 0:01:58.3]} 21. fxe5
{[%clk 0:01:57.8]} 21... Qe6 {[%clk 0:01:48.3]} 22. Qd4 {[%clk 0:01:54.2]} 22...
Re8 {[%clk 0:01:46.6]} 23. Nb6 {[%clk 0:01:33.6]} 23... Nxb6 {[%clk 0:01:46.4]}
24. cxb6 {[%clk 0:01:34.7]} 24... Rac8 {[%clk 0:01:45.1]} 25. Rad1 {[%clk
0:01:33.1]} 25... g6 {[%clk 0:01:42.6]} 26. Kh1 {[%clk 0:01:25.4]} 26... Re7
{[%clk 0:01:39.3]} 27. Qxd5 {[%clk 0:01:21.1]} 27... Qxd5 {[%clk 0:01:36.9]} 28.
Rxd5 {[%clk 0:01:21.5]} 28... Rxc3 {[%clk 0:01:38.5]} 29. Rc5 {[%clk 0:01:23.1]}
29... Rb3 {[%clk 0:01:32.5]} 30. Re4 {[%clk 0:01:19.1]} 30... f5 {[%clk
0:01:17.2]} 31. Rec4 {[%clk 0:01:11.6]} 31... Re3 {[%clk 0:01:16.2]} 32. Rc8+
{[%clk 0:01:07.4]} 32... Kg7 {[%clk 0:01:16.3]} 33. Rb8 {[%clk 0:00:58.8]} 33...
R3xe5 {[%clk 0:00:45.8]} 34. Rc7 {[%clk 0:00:59]} 34... Kh6 {[%clk 0:00:45.8]}
35. Rbxb7 {[%clk 0:00:56.8]} 35... R7e6 {[%clk 0:00:38.5]} 36. Kh2 {[%clk
0:00:21.4]} 36... Kg5 {[%clk 0:00:33]} 37. Rxh7 {[%clk 0:00:17.5]} 37... Rb5
{[%clk 0:00:30.8]} 38. Rhc7 {[%clk 0:00:08.8]} 38... Rxb4 {[%clk 0:00:26.2]} 39.
Rc3 {[%clk 0:00:10.1]} 39... Rexb6 {[%clk 0:00:23.5]} 40. Rg3+ {[%clk
0:00:11.8]} 40... Kf6 {[%clk 0:00:22.5]} 41. Ra7 {[%clk 0:00:08.3]} 41... Ra4
{[%clk 0:00:21.1]} 42. Ra8 {[%clk 0:00:09.4]} 42... Ra2 {[%clk 0:00:21.9]} 43.
Rg8 {[%clk 0:00:10]} 43... Ke5 {[%clk 0:00:16.3]} 44. R8xg6 {[%clk 0:00:10.2]}
44... Rb1 {[%clk 0:00:16.6]} 45. Re3+ {[%clk 0:00:10]} 45... Kd4 {[%clk
0:00:16.6]} 46. Rf3 {[%clk 0:00:11.4]} 46... Ke4 {[%clk 0:00:16.7]} 47. Rf6
{[%clk 0:00:09.2]} 47... Ra5 {[%clk 0:00:15.1]} 48. Re6+ {[%clk 0:00:10.1]}
48... Kd5 {[%clk 0:00:15.9]} 49. Re2 {[%clk 0:00:11.5]} 49... Kc6 {[%clk
0:00:14.6]} 50. Re6+ {[%clk 0:00:12.4]} 50... Kd7 {[%clk 0:00:15.2]} 51. Rf6
{[%clk 0:00:13.1]} 51... Rbb5 {[%clk 0:00:15.6]} 52. h4 {[%clk 0:00:14.4]} 52...
Ra4 {[%clk 0:00:15.1]} 53. Kh3 {[%clk 0:00:12.7]} 53... Raa5 {[%clk 0:00:15.5]}
54. h5 {[%clk 0:00:13.5]} 54... f4 {[%clk 0:00:16.9]} 55. h6 {[%clk 0:00:15]}
55... Rh5+ {[%clk 0:00:17.4]} 56. Kg4 {[%clk 0:00:16.7]} 56... Rag5+ {[%clk
0:00:16.8]} 57. Kxf4 {[%clk 0:00:18.2]} 57... Rxg2 {[%clk 0:00:18.4]} 58. Ke3
{[%clk 0:00:18]} 58... Rgh2 {[%clk 0:00:19]} 59. Rxa6 {[%clk 0:00:16.3]} 59...
Rxh6 {[%clk 0:00:18.3]} 60. Rf7+ {[%clk 0:00:17.8]} 60... Ke8 {[%clk 0:00:18.5]}
61. Rxh6 {[%clk 0:00:17.8]} 61... Rxh6 {[%clk 0:00:19.4]} 62. Rf4 {[%clk
0:00:19.5]} 62... Re6+ {[%clk 0:00:20.3]} 63. Re4 {[%clk 0:00:21.3]} 63... Rxe4+
{[%clk 0:00:21.7]} 64. Kxe4 {[%clk 0:00:23.1]} 1/2-1/2

[Event "*** Titled Tuesday Blitz"]
[Site "Chess.com"]
[Date "2019.12.03"]
[Round "4"]
[White "joshdaruca"]
[Black "sergoy"]
[Result "0-1"]
[WhiteElo "2702"]
[BlackElo "2908"]
[TimeControl "180+2"]
[EndTime "13:55:03 PST"]
[Termination "sergoy won by resignation"]

1. Nf3 {[%clk 0:03:01.9]} 1... Nf6 {[%clk 0:03:00.7]} 2. g3 {[%clk 0:03:02.8]}
2... g6 {[%clk 0:03:02]} 3. Bg2 {[%clk 0:03:04.7]} 3... Bg7 {[%clk 0:03:03.6]}
4. O-O {[%clk 0:03:05.8]} 4... O-O {[%clk 0:03:05.2]} 5. c4 {[%clk 0:03:07.4]}
5... c6 {[%clk 0:03:06.4]} 6. d4 {[%clk 0:03:08.6]} 6... d5 {[%clk 0:03:07.4]}
7. cxd5 {[%clk 0:03:10.5]} 7... cxd5 {[%clk 0:03:08.7]} 8. Nc3 {[%clk
0:03:12.4]} 8... Ne4 {[%clk 0:03:09.6]} 9. Nd2 {[%clk 0:03:07.7]} 9... Nf6
{[%clk 0:03:02.5]} 10. Qb3 {[%clk 0:03:05.1]} 10... Nc6 {[%clk 0:03:02.5]} 11.
e3 {[%clk 0:03:04.2]} 11... e6 {[%clk 0:02:59.4]} 12. Qc2 {[%clk 0:02:55.2]}
12... Bd7 {[%clk 0:02:59.2]} 13. b3 {[%clk 0:02:52.9]} 13... Rc8 {[%clk
0:02:58]} 14. Ba3 {[%clk 0:02:51.3]} 14... Re8 {[%clk 0:02:59.1]} 15. Rfc1
{[%clk 0:02:47.5]} 15... e5 {[%clk 0:02:55.3]} 16. dxe5 {[%clk 0:02:47.3]} 16...
Nxe5 {[%clk 0:02:55.1]} 17. Bb2 {[%clk 0:02:48.1]} 17... Bf5 {[%clk 0:02:54.5]}
18. Qd1 {[%clk 0:02:23.2]} 18... Nd3 {[%clk 0:02:54.1]} 19. Na4 {[%clk
0:02:23.1]} 19... Nxc1 {[%clk 0:02:52.1]} 20. Rxc1 {[%clk 0:02:22.6]} 20... Ne4
{[%clk 0:02:52.4]} 21. Rxc8 {[%clk 0:02:21.7]} 21... Qxc8 {[%clk 0:02:48.7]} 22.
Bxg7 {[%clk 0:02:22.3]} 22... Kxg7 {[%clk 0:02:49.1]} 23. Nxe4 {[%clk
0:02:23.2]} 23... dxe4 {[%clk 0:02:46.3]} 24. Qd4+ {[%clk 0:02:21.1]} 24... Kg8
{[%clk 0:02:46.5]} 25. Nc3 {[%clk 0:02:21.8]} 25... Rd8 {[%clk 0:01:02.9]} 26.
Qe5 {[%clk 0:02:17.6]} 26... Bh3 {[%clk 0:00:54.3]} 27. Bxh3 {[%clk 0:02:14.7]}
27... Qxh3 {[%clk 0:00:55.1]} 28. Qxe4 {[%clk 0:02:15.6]} 28... Rc8 {[%clk
0:00:48.5]} 29. Qd4 {[%clk 0:02:11.5]} 29... h5 {[%clk 0:00:42.5]} 30. e4 {[%clk
0:02:09.7]} 30... h4 {[%clk 0:00:38.9]} 31. Qe3 {[%clk 0:02:06.4]} 31... Qg4
{[%clk 0:00:35.6]} 32. Nd5 {[%clk 0:02:03.6]} 32... Qe6 {[%clk 0:00:24.1]} 33.
Qd4 {[%clk 0:02:01.4]} 33... h3 {[%clk 0:00:16.5]} 34. f3 {[%clk 0:01:52.8]}
34... Rc6 {[%clk 0:00:15.3]} 35. Kf2 {[%clk 0:01:39.2]} 35... Qd6 {[%clk
0:00:15.3]} 36. b4 {[%clk 0:01:31.8]} 36... a5 {[%clk 0:00:15.5]} 37. a3 {[%clk
0:01:32.1]} 37... axb4 {[%clk 0:00:16.4]} 38. axb4 {[%clk 0:01:33.6]} 38... f6
{[%clk 0:00:17.9]} 39. Qd2 {[%clk 0:01:27.4]} 39... Qe5 {[%clk 0:00:16.8]} 40.
Ne3 {[%clk 0:01:25]} 40... Rd6 {[%clk 0:00:15.6]} 41. Nd5 {[%clk 0:01:25.9]}
41... Kg7 {[%clk 0:00:15.8]} 42. b5 {[%clk 0:01:25.3]} 42... Rd8 {[%clk
0:00:14.4]} 43. Qb4 {[%clk 0:01:20.3]} 43... Ra8 {[%clk 0:00:13.6]} 44. Nc3
{[%clk 0:01:18.7]} 44... Rc8 {[%clk 0:00:13.9]} 45. Ne2 {[%clk 0:01:14.3]} 45...
Qc5+ {[%clk 0:00:14.4]} 46. Qxc5 {[%clk 0:01:12.9]} 46... Rxc5 {[%clk
0:00:16.3]} 47. Nf4 {[%clk 0:01:11.1]} 47... Rxb5 {[%clk 0:00:16.5]} 48. Nxh3
{[%clk 0:01:12.4]} 48... g5 {[%clk 0:00:17.5]} 49. Ng1 {[%clk 0:01:13.2]} 49...
Rb2+ {[%clk 0:00:18.6]} 50. Ne2 {[%clk 0:01:14.2]} 50... b5 {[%clk 0:00:20]} 51.
Ke3 {[%clk 0:01:15.7]} 51... b4 {[%clk 0:00:21.4]} 52. h4 {[%clk 0:01:13.7]}
52... gxh4 {[%clk 0:00:19.5]} 53. gxh4 {[%clk 0:01:15.6]} 53... b3 {[%clk
0:00:20.7]} 54. Nd4 {[%clk 0:01:17.2]} 54... Rb1 {[%clk 0:00:21.8]} 55. Kd2
{[%clk 0:01:13.8]} 55... Kg6 {[%clk 0:00:18.2]} 56. Kc3 {[%clk 0:01:15]} 56...
Kh5 {[%clk 0:00:19.4]} 57. Nxb3 {[%clk 0:01:15.1]} 57... Kxh4 {[%clk 0:00:20.8]}
58. Nd2 {[%clk 0:01:05.6]} 58... Ra1 {[%clk 0:00:21.3]} 59. Nc4 {[%clk
0:00:14.9]} 59... Kg3 {[%clk 0:00:20.9]} 60. e5 {[%clk 0:00:15.8]} 60... f5
{[%clk 0:00:21.6]} 61. Nd6 {[%clk 0:00:15.9]} 61... Kf4 {[%clk 0:00:20.5]} 62.
Kd4 {[%clk 0:00:15.1]} 62... Rd1+ {[%clk 0:00:21.1]} 63. Kc5 {[%clk 0:00:15.9]}
63... Kxe5 {[%clk 0:00:22]} 64. Nc4+ {[%clk 0:00:16.4]} 64... Kf4 {[%clk
0:00:23.3]} 0-1